fUSD/lending_fUSD_20240502
["ID","MTS","AMOUNT","RATE_DAILY","PERIOD"]
[325297570,1714685445162,-899.34,0.00030136,2]
[325297571,1714685445172,-500.0,0.00030136,2]
[325297572,1714685445182,-500.0,0.00030136,2]
[325297573,1714685445191,-1637.55,0.00030136,2]
[325297574,1714685445201,-1948.34,0.00030136,2]
[325297575,1714685445211,-794.19,0.00030136,2]
[325297576,1714685445221,-500.0,0.00030136,2]
[325297577,1714685445231,-500.0,0.00030136,2]
[325297578,1714685445241,-500.0,0.00030136,2]
[325297579,1714685445252,-500.0,0.00030136,2]
[325297580,1714685445261,-500.0,0.00030136,2]
[325297581,1714685445271,-500.0,0.00030136,2]
[325297582,1714685445282,-500.0,0.00030136,2]
[325297583,1714685445292,-500.0,0.00030136,2]
[325297584,1714685445301,-1310.86,0.00030136,2]
[325297585,1714685445311,-500.99566809,0.00030136,2]
[325297586,1714685445320,-500.0,0.00030136,2]
[325297587,1714685445330,-800.1,0.00030136,2]
[325297588,1714685445339,-500.0,0.00030136,2]
[325297589,1714685445348,-500.0,0.00030136,2]
[325297590,1714685445358,-1876.8,0.00030136,2]
[325297591,1714685445367,-500.0,0.00030136,2]
[325297592,1714685445376,-500.0,0.00030136,2]
[325297593,1714685445386,-500.0,0.00030136,2]
[325297594,1714685445395,-569.32649259,0.00030136,2]
[325297595,1714685445405,-500.0,0.00030136,2]
[325297596,1714685445414,-500.0,0.00030136,2]
[325297597,1714685445423,-500.0,0.00030136,2]
[325297598,1714685445433,-500.0,0.00030136,2]
[325297599,1714685445442,-500.0,0.00030136,2]
[325297600,1714685445454,-524.96,0.00030136,2]
[325297601,1714685445466,-500.0,0.00030136,2]
[325297602,1714685445477,-500.0,0.00030136,2]
[325297603,1714685445486,-500.0,0.00030136,2]
[325297604,1714685445496,-1199.41,0.00030136,2]
[325297606,1714685445507,-500.0,0.00030136,2]
[325297608,1714685445516,-500.0,0.00030136,2]
[325297609,1714685445526,-1044.92,0.00030136,2]
[325297611,1714685445538,-877.21,0.00030136,2]
[325297612,1714685445548,-500.0,0.00030136,2]
[325297614,1714685445558,-1072.67,0.00030136,2]
[325297615,1714685445567,-500.0,0.00030136,2]
[325297616,1714685445577,-1371.05,0.00030136,2]
[325297617,1714685445586,-500.0,0.00030136,2]
[325297618,1714685445595,-500.0,0.00030136,2]
[325297619,1714685445604,-500.0,0.00030136,2]
[325297620,1714685445615,-869.78,0.00030136,2]
[325297621,1714685445624,-1344.89,0.00030136,2]
[325297622,1714685445634,-500.0,0.00030136,2]
[325297623,1714685445643,-500.0,0.00030136,2]
[325297624,1714685445652,-500.0,0.00030136,2]
[325297625,1714685445662,-500.0,0.00030136,2]
[325297626,1714685445670,-1567.06,0.00030136,2]
[325297627,1714685445679,-500.0,0.00030136,2]
[325297629,1714685445689,-500.0,0.00030136,2]
[325297630,1714685445698,-500.0,0.00030136,2]
[325297631,1714685445707,-1318.74,0.00030136,2]
[325297632,1714685445717,-500.0,0.00030136,2]
[325297633,1714685445726,-2290.24,0.00030136,2]
[325297634,1714685445735,-500.0,0.00030136,2]
[325297635,1714685445744,-500.0,0.00030136,2]
[325297636,1714685445754,-900.95,0.00030136,2]
[325297637,1714685445763,-500.0,0.00030136,2]
[325297638,1714685445772,-500.0,0.00030136,2]
[325297639,1714685445781,-500.0,0.00030136,2]
[325297640,1714685445791,-500.0,0.00030136,2]
[325297641,1714685445800,-500.0,0.00030136,2]
[325297642,1714685445810,-500.0,0.00030136,2]
[325297643,1714685445819,-500.0,0.00030136,2]
[325297644,1714685445828,-505.50605674,0.00030136,2]
[325297645,1714685445838,-190.4794849,0.00030136,2]
[325297646,1714685445847,-500.0,0.00030136,2]
[325297647,1714685445857,-500.0,0.00030136,2]
[325297648,1714685445866,-1142.89,0.00030136,2]
[325297649,1714685445875,-500.0,0.00030136,2]
[325297650,1714685445884,-500.0,0.00030136,2]
[325297651,1714685445894,-500.0,0.00030136,2]
[325297652,1714685445903,-1865.67800272,0.00030136,2]
[325297653,1714685446492,-262.65011809,0.00030136,2]
[325297654,1714685446520,-258.87187919,0.00030136,2]
[325297655,1714685446530,-161.38147533,0.00030136,2]
[325297656,1714685446542,-617.85698345,0.00030136,2]
[325297657,1714685446566,-320.15154122,0.00030136,2]
[325297658,1714685446575,-500.0,0.00030136,2]
[325297659,1714685446584,-81.04476916,0.00030136,2]
[325297660,1714685446596,-482.33708464,0.00030136,2]
[325297661,1714685446605,-500.0,0.00030136,2]
[325297662,1714685446614,-500.0,0.00030136,2]
[325297663,1714685446624,-306.23541127,0.00030136,2]
[325297664,1714685446633,-505.30262263,0.00030136,2]
[325297665,1714685446642,-502.285162,0.00030136,2]
[325297666,1714685446651,-500.0,0.00030136,2]
[325297667,1714685446661,-631.08062721,0.00030136,2]
[325297668,1714685446671,-1542.4,0.00030136,2]
[325297669,1714685446680,-1062.57,0.00030136,2]
[325297670,1714685446689,-500.0,0.00030136,2]
[325297671,1714685446698,-500.0,0.00030136,2]
[325297672,1714685446707,-500.0,0.00030136,2]
[325297673,1714685446716,-500.0,0.00030136,2]
[325297674,1714685446727,-500.0,0.00030136,2]
[325297675,1714685446736,-500.0,0.00030136,2]
[325297676,1714685446745,-500.0,0.00030136,2]
[325297677,1714685446754,-500.0,0.00030136,2]
[325297678,1714685446764,-500.0,0.00030136,2]
[325297679,1714685446773,-500.0,0.00030136,2]
[325297680,1714685446782,-500.0,0.00030136,2]
[325297681,1714685446791,-500.0,0.00030136,2]
[325297682,1714685446800,-550.41,0.00030136,2]
[325297683,1714685446811,-507.97078752,0.00030136,2]
[325297684,1714685446820,-500.0,0.00030136,2]
[325297685,1714685446829,-782.27,0.00030136,2]
[325297686,1714685446839,-500.0,0.00030136,2]
[325297687,1714685446849,-500.0,0.00030136,2]
[325297688,1714685446858,-1219.74518884,0.00030136,2]
[325297689,1714685446871,-650.58481116,0.00030136,2]
[325297690,1714685446880,-500.0,0.00030136,2]
[325297691,1714685446890,-500.0,0.00030136,2]
[325297692,1714685446899,-114.41518884,0.00030136,2]
[325297693,1714685446911,-385.58481116,0.00030136,2]
[325297694,1714685446920,-428.06513884,0.00030136,2]
[325297695,1714685446931,-71.93486116,0.00030136,2]
[325297696,1714685446940,-1075.83,0.00030136,2]
[325297697,1714685446949,-500.0,0.00030136,2]
[325297698,1714685446958,-428.72408395,0.00030136,2]
[325297699,1714685446969,-713.52591605,0.00030136,2]
[325297700,1714685446979,-500.0,0.00030136,2]
[325297701,1714685446988,-500.0,0.00030136,2]
[325297702,1714685446997,-396.31234574,0.00030136,2]
[325297703,1714685447009,-319.395,0.00030136,2]
[325297704,1714685447020,-556.34975306,0.00030136,2]
[325297705,1714685447032,-297.7129012,0.00030136,2]
[325297706,1714685447041,-1042.29888435,0.00030136,2]
[325297707,1714685447052,-52.49111565,0.00030136,2]
[325297708,1714685447061,-599.76078435,0.00030136,2]
[325297709,1714685447072,-515.63211921,0.00030136,2]
[325297710,1714685447083,-338.89709644,0.00030136,2]
[325297711,1714685447092,-500.0,0.00030136,2]
[325297712,1714685447101,-379.84802511,0.00030136,2]
[325297713,1714685447113,-120.15197489,0.00030136,2]
[325297714,1714685447122,-504.04031882,0.00030136,2]
[325297715,1714685447131,-620.46,0.00030136,2]
[325297716,1714685447140,-502.86443689,0.00030136,2]
[325297717,1714685447149,-500.0,0.00030136,2]
[325297718,1714685447158,-500.0,0.00030136,2]
[325297719,1714685447167,-500.0,0.00030136,2]
[325297720,1714685447176,-729.99,0.00030136,2]
[325297721,1714685447185,-517.5,0.00030136,2]
[325297722,1714685447194,-500.0,0.00030136,2]
[325297723,1714685447203,-500.0,0.00030136,2]
[325297724,1714685447212,-500.0,0.00030136,2]
[325297725,1714685447221,-500.0,0.00030136,2]
[325297726,1714685447231,-530.13097919,0.00030136,2]
[325297727,1714685447240,-500.0,0.00030136,2]
[325297728,1714685447250,-500.0,0.00030136,2]
[325297729,1714685447259,-500.0,0.00030136,2]
[325297730,1714685447268,-944.33,0.00030136,2]
[325297731,1714685447277,-500.0,0.00030136,2]
[325297732,1714685447286,-500.0,0.00030136,2]
[325297733,1714685447295,-1300.94,0.00030136,2]
[325297734,1714685447304,-2328.85,0.00030136,2]
[325297735,1714685447314,-1044.22,0.00030136,2]
[325297736,1714685447323,-500.0,0.00030136,2]
[325297737,1714685447332,-500.0,0.00030136,2]
[325297738,1714685447341,-500.0,0.00030136,2]
[325297739,1714685447350,-500.0,0.00030136,2]
[325297740,1714685447359,-500.0,0.00030136,2]
[325297741,1714685447368,-500.0,0.00030136,2]
[325297742,1714685447378,-500.0,0.00030136,2]
[325297743,1714685447387,-1190.62,0.00030136,2]
[325297744,1714685447396,-990.0,0.00030136,2]
[325297745,1714685447405,-500.0,0.00030136,2]
[325297746,1714685447414,-562.82,0.00030136,2]
[325297747,1714685447423,-500.0,0.00030136,2]
[325297748,1714685447432,-500.0,0.00030136,2]
[325297749,1714685447442,-500.0,0.00030136,2]
[325297750,1714685447451,-509.06,0.00030136,2]
[325297751,1714685447461,-1815.08,0.00030136,2]
[325297752,1714685447472,-501.02906897,0.00030136,2]
[325297753,1714685447482,-534.0754994,0.00030136,2]
[325297754,1714685447492,-500.0,0.00030136,2]
[325297755,1714685447503,-500.0,0.00030136,2]
[325297756,1714685447512,-500.0,0.00030136,2]
[325297757,1714685447521,-500.0,0.00030136,2]
[325297758,1714685447531,-500.0,0.00030136,2]
[325297759,1714685447541,-856.98,0.00030136,2]
[325297760,1714685447551,-500.0,0.00030136,2]
[325297761,1714685447560,-815.65,0.00030136,2]
[325297762,1714685447570,-500.0,0.00030136,2]
[325297763,1714685447579,-500.0,0.00030136,2]
[325297764,1714685447588,-500.0,0.00030136,2]
[325297765,1714685447598,-500.0,0.00030136,2]
[325297766,1714685447607,-500.0,0.00030136,2]
[325297767,1714685447617,-500.0,0.00030136,2]
[325297768,1714685447626,-500.0,0.00030136,2]
[325297769,1714685447636,-500.0,0.00030136,2]
[325297770,1714685447645,-613.01,0.00030136,2]
[325297771,1714685447655,-500.0,0.00030136,2]
[325297772,1714685447663,-500.0,0.00030136,2]
[325297773,1714685447673,-664.45,0.00030136,2]
[325297774,1714685447682,-510.47,0.00030136,2]
[325297775,1714685447691,-500.0,0.00030136,2]
[325297776,1714685447701,-500.0,0.00030136,2]
[325297777,1714685447710,-500.0,0.00030136,2]
[325297778,1714685447720,-500.0,0.00030136,2]
[325297779,1714685447730,-500.0,0.00030136,2]
[325297780,1714685447740,-500.0,0.00030136,2]
[325297781,1714685447749,-500.0,0.00030136,2]
[325297782,1714685447759,-584.8,0.00030136,2]
[325297783,1714685447769,-500.0,0.00030136,2]
[325297784,1714685447778,-500.0,0.00030136,2]
[325297785,1714685447787,-500.0,0.00030136,2]
[325297786,1714685447796,-500.0,0.00030136,2]
[325297787,1714685447805,-500.0,0.00030136,2]
[325297788,1714685447815,-3111.19,0.00030136,2]
[325297789,1714685447824,-500.0,0.00030136,2]
[325297790,1714685447833,-500.0,0.00030136,2]
[325297791,1714685447842,-984.3,0.00030136,2]
[325297792,1714685447851,-500.0,0.00030136,2]
[325297793,1714685447860,-500.0,0.00030136,2]
[325297794,1714685447869,-500.0,0.00030136,2]
[325297795,1714685447878,-836.42,0.00030136,2]
[325297796,1714685447887,-500.0,0.00030136,2]
[325297797,1714685447896,-500.0,0.00030136,2]
[325297798,1714685447906,-500.0,0.00030136,2]
[325297799,1714685447915,-500.0,0.00030136,2]
[325297800,1714685447924,-1193.27,0.00030136,2]
[325297801,1714685447932,-500.0,0.00030136,2]
[325297802,1714685447942,-500.0,0.00030136,2]
[325297803,1714685447951,-1063.34,0.00030136,2]
[325297804,1714685447960,-500.0,0.00030136,2]
[325297805,1714685447969,-500.0,0.00030136,2]
[325297806,1714685447979,-1075.36,0.00030136,2]
[325297807,1714685447988,-500.0,0.00030136,2]
[325297808,1714685447997,-501.01367022,0.00030136,2]
[325297809,1714685448006,-500.0,0.00030136,2]
[325297810,1714685448016,-805.47,0.00030136,2]
[325297811,1714685448025,-501.4029515,0.00030136,2]
[325297812,1714685448034,-500.0,0.00030136,2]
[325297813,1714685448043,-9532.1,0.00030136,2]
[325297814,1714685448052,-500.0,0.00030136,2]
[325297815,1714685448061,-546.29,0.00030136,2]
[325297816,1714685448070,-500.0,0.00030136,2]
[325297817,1714685448079,-502.01349116,0.00030136,2]
[325297818,1714685448088,-1415.5,0.00030136,2]
[325297819,1714685448097,-500.0,0.00030136,2]
[325297820,1714685448106,-704.72,0.00030136,2]
[325297821,1714685448115,-501.19074427,0.00030136,2]
[325297822,1714685448124,-4492.02,0.00030136,2]
[325297823,1714685448134,-3040.67139498,0.00030136,2]
[325297824,1714685448151,-309.3964289,0.00030136,2]
[325297825,1714685448162,-4039.67217612,0.00030136,2]
[325297826,1714685448172,-500.0,0.00030136,2]
[325297827,1714685448181,-500.0,0.00030136,2]
[325297828,1714685448190,-846.67,0.00030136,2]
[325297829,1714685448199,-1257.02,0.00030136,2]
[325297830,1714685448208,-500.0,0.00030136,2]
[325297831,1714685448217,-500.0,0.00030136,2]
[325297832,1714685448227,-500.0,0.00030136,2]
[325297833,1714685448235,-500.0,0.00030136,2]
[325297834,1714685448245,-530.41314315,0.00030136,2]
[325297835,1714685448254,-838.7,0.00030136,2]
[325297836,1714685448263,-500.0,0.00030136,2]
[325297837,1714685448272,-87.56583255,0.00030136,2]
[325297838,1714685448284,-442.44199997,0.00030136,2]
[325297839,1714685448295,-315.63128654,0.00030136,2]
[325297840,1714685448307,-1272.28088094,0.00030136,2]
[325297841,1714685448316,-6665.37,0.00030136,2]
[325297842,1714685448325,-500.0,0.00030136,2]
[325297843,1714685448334,-500.0,0.00030136,2]
[325297844,1714685448344,-500.0,0.00030136,2]
[325297845,1714685448353,-453.13015315,0.00030136,2]
[325297846,1714685448364,-46.86984685,0.00030136,2]
[325297847,1714685448373,-500.0,0.00030136,2]
[325297848,1714685448382,-1074.76,0.00030136,2]
[325297849,1714685448392,-319.31524879,0.00030136,2]
[325297850,1714685448403,-180.68475121,0.00030136,2]
[325297851,1714685448412,-500.0,0.00030136,2]
[325297852,1714685448422,-500.0,0.00030136,2]
[325297853,1714685448431,-500.0,0.00030136,2]
[325297854,1714685448440,-500.0,0.00030136,2]
[325297855,1714685448450,-581.56911975,0.00030136,2]
[325297856,1714685448463,-1167.43,0.00030136,2]
[325297857,1714685448473,-500.0,0.00030136,2]
[325297858,1714685448482,-3539.48806373,0.00030136,2]
[325297859,1714685448497,-3131.87472,0.00030136,2]
[325297860,1714685448508,-722.52774619,0.00030136,2]
[325297861,1714685448519,-2630.05297866,0.00030136,2]
[325297862,1714685448531,-321.445025,0.00030136,2]
[325297863,1714685448543,-393.42146642,0.00030136,2]
[325297864,1714685448552,-208.98352398,0.00030136,2]
[325297865,1714685448564,-291.01647602,0.00030136,2]
[325297866,1714685448573,-500.0,0.00030136,2]
[325297867,1714685448582,-207.82738431,0.00030136,2]
[325297868,1714685448594,-1469.87261569,0.00030136,2]
[325297869,1714685448603,-1297.09,0.00030136,2]
[325297870,1714685448614,-500.0,0.00030136,2]
[325297871,1714685448623,-850.3,0.00030136,2]
[325297872,1714685448634,-504.49335913,0.00030136,2]
[325297873,1714685448643,-953.69,0.00030136,2]
[325297874,1714685448653,-902.23,0.00030136,2]
[325297875,1714685448662,-504.78447206,0.00030136,2]
[325297876,1714685448671,-500.51707628,0.00030136,2]
[325297877,1714685448680,-1576.36,0.00030136,2]
[325297878,1714685448689,-500.0,0.00030136,2]
[325297879,1714685448698,-644.54,0.00030136,2]
[325297880,1714685448708,-888.0,0.00030136,11]
[325297881,1714685448717,-500.0,0.00030136,2]
[325297882,1714685448727,-500.0,0.00030136,2]
[325297883,1714685448735,-500.0,0.00030136,2]
[325297884,1714685448745,-500.0,0.00030136,2]
[325297885,1714685448754,-500.0,0.00030136,2]
[325297886,1714685448763,-500.0,0.00030136,2]
[325297887,1714685448771,-500.0,0.00030136,2]
[325297888,1714685448780,-1456.22,0.00030136,2]
[325297889,1714685448789,-500.0,0.00030136,2]
[325297890,1714685448798,-1067.52,0.00030136,2]
[325297891,1714685448807,-500.0,0.00030136,2]
[325297892,1714685448816,-870.67,0.00030136,2]
[325297893,1714685448826,-500.0,0.00030136,2]
[325297894,1714685448835,-500.0,0.00030136,2]
[325297895,1714685448844,-500.0,0.00030136,2]
[325297896,1714685448853,-500.0,0.00030136,2]
[325297897,1714685448862,-500.0,0.00030136,2]
[325297898,1714685448872,-500.0,0.00030136,2]
[325297899,1714685448881,-500.0,0.00030136,2]
[325297900,1714685448890,-500.0,0.00030136,2]
[325297901,1714685448899,-500.0,0.00030136,2]
[325297902,1714685448908,-500.0,0.00030136,2]
[325297903,1714685448918,-1590.65,0.00030136,2]
[325297904,1714685448926,-1484.21187306,0.00030136,2]
[325297905,1714685449530,-300.62,0.00021259,3]
[325297906,1714685449541,-178.54356066,0.00030136,2]
[325297907,1714685449554,-1930.15592997,0.00030136,2]
[325297908,1714685449566,-667.34675804,0.00030136,2]
[325297909,1714685449589,-384.83468693,0.00030136,2]
[325297910,1714685449601,-357.99,0.00030136,2]
[325297911,1714685449613,-5746.05719134,0.00030136,2]
[325297912,1714685449624,-2359.25,0.00030136,2]
[325297913,1714685449634,-500.0,0.00030136,2]
[325297914,1714685449644,-500.0,0.00030136,2]
[325297915,1714685449654,-500.0,0.00030136,2]
[325297916,1714685449663,-589.35829921,0.00030136,2]
[325297917,1714685449673,-619.25,0.00030136,2]
[325297918,1714685449682,-500.0,0.00030136,2]
[325297919,1714685449691,-500.0,0.00030136,2]
[325297920,1714685449701,-500.0,0.00030136,2]
[325297921,1714685449710,-1106.0,0.00030136,2]
[325297922,1714685449719,-1151.92,0.00030136,2]
[325297923,1714685449730,-500.0,0.00030136,2]
[325297924,1714685449739,-827.0,0.00030136,2]
[325297925,1714685449749,-1053.7,0.00030136,2]
[325297926,1714685449759,-1347.14,0.00030136,2]
[325297927,1714685449768,-500.0,0.00030136,2]
[325297928,1714685449778,-2190.57,0.00030136,2]
[325297929,1714685449788,-1111.37,0.00030136,2]
[325297930,1714685449798,-1167.32,0.00030136,2]
[325297931,1714685449809,-574.71,0.00030136,2]
[325297932,1714685449819,-501.53206647,0.00030136,2]
[325297933,1714685449828,-500.0,0.00030136,2]
[325297934,1714685449837,-501.11133732,0.00030136,2]
[325297935,1714685449847,-500.0,0.00030136,2]
[325297936,1714685449856,-3195.42,0.00030136,2]
[325297937,1714685449865,-500.0,0.00030136,2]
[325297938,1714685449875,-2482.38,0.00030136,2]
[325297939,1714685449884,-9549.28,0.00030136,2]
[325297940,1714685449893,-500.0,0.00030136,2]
[325297941,1714685449903,-2879.01,0.00030136,2]
[325297942,1714685449912,-501.66158164,0.00030136,2]
[325297943,1714685449922,-526.75,0.00030136,2]
[325297944,1714685449932,-500.0,0.00030136,2]
[325297945,1714685449941,-500.0,0.00030136,2]
[325297946,1714685449951,-500.0,0.00030136,2]
[325297947,1714685449960,-2816.33,0.00030136,2]
[325297948,1714685449969,-1830.51,0.00030136,2]
[325297949,1714685449979,-500.26137584,0.00030136,2]
[325297950,1714685449988,-848.7,0.00030136,2]
[325297951,1714685449998,-500.0,0.00030136,2]
[325297952,1714685450008,-500.0,0.00030136,2]
[325297953,1714685450017,-1152.34,0.00030136,2]
[325297954,1714685450027,-1153.09,0.00030136,2]
[325297955,1714685450037,-3043.38,0.00030136,2]
[325297956,1714685450046,-876.2,0.00030136,2]
[325297957,1714685450056,-500.0,0.00030136,2]
[325297958,1714685450066,-5354.82,0.00030136,2]
[325297959,1714685450076,-500.0,0.00030136,2]
[325297960,1714685450085,-500.0,0.00030136,2]
[325297961,1714685450095,-991.13,0.00030136,2]
[325297962,1714685450104,-2658.12,0.00030136,2]
[325297963,1714685450114,-500.0,0.00030136,2]
[325297964,1714685450124,-500.0,0.00030136,2]
[325297965,1714685450134,-500.0,0.00030136,2]
[325297966,1714685450143,-502.35211907,0.00030136,2]
[325297967,1714685450153,-1108.58,0.00030136,2]
[325297968,1714685450162,-500.0,0.00030136,2]
[325297969,1714685450172,-500.0,0.00030136,2]
[325297970,1714685450182,-501.36852304,0.00030136,2]
[325297971,1714685450191,-500.0,0.00030136,2]
[325297972,1714685450200,-1408.33,0.00030136,2]
[325297973,1714685450210,-37576.89,0.00030136,2]
[325297974,1714685450219,-2107.85,0.00030136,2]
[325297975,1714685450230,-11348.74,0.00030136,2]
[325297976,1714685450240,-16578.61,0.00030136,2]
[325297977,1714685450250,-500.44201957,0.00030136,2]
[325297978,1714685450259,-500.0,0.00030136,2]
[325297979,1714685450269,-500.0,0.00030136,2]
[325297980,1714685450278,-500.0,0.00030136,2]
[325297981,1714685450288,-500.0,0.00030136,2]
[325297982,1714685450298,-1168.79,0.00030136,2]
[325297983,1714685450308,-2194.13,0.00030136,2]
[325297984,1714685450318,-2383.0,0.00030136,2]
[325297985,1714685450328,-500.0,0.00030136,2]
[325297986,1714685450337,-500.0,0.00030136,2]
[325297987,1714685450347,-500.0,0.00030136,2]
[325297988,1714685450357,-500.0,0.00030136,2]
[325297989,1714685450367,-500.0,0.00030136,2]
[325297990,1714685450377,-3317.76,0.00030136,2]
[325297991,1714685450387,-500.0,0.00030136,2]
[325297992,1714685450396,-2387.46,0.00030136,2]
[325297993,1714685450406,-10341.95,0.00030136,2]
[325297994,1714685450416,-500.0,0.00030136,2]
[325297995,1714685450426,-3521.9,0.00030136,2]
[325297996,1714685450435,-879.49,0.00030136,2]
[325297997,1714685450445,-1072.3,0.00030136,2]
[325297998,1714685450459,-500.0,0.00030136,2]
[325297999,1714685450469,-502.21143931,0.00030136,2]
[325298000,1714685450479,-684.93,0.00030136,2]
[325298001,1714685450489,-1787.66,0.00030136,2]
[325298002,1714685450500,-500.0,0.00030136,2]
[325298003,1714685450510,-500.0,0.00030136,2]
[325298004,1714685450519,-1114.78,0.00030136,2]
[325298005,1714685450528,-2910.8,0.00030136,2]
[325298006,1714685450540,-500.0,0.00030136,2]
[325298007,1714685450549,-500.0,0.00030136,2]
[325298008,1714685450559,-500.0,0.00030136,2]
[325298009,1714685450569,-500.0,0.00030136,2]
[325298010,1714685450578,-1831.76,0.00030136,2]
[325298011,1714685450588,-500.0,0.00030136,2]
[325298012,1714685450598,-912.56,0.00030136,2]
[325298013,1714685450608,-874.99,0.00030136,2]
[325298014,1714685450618,-500.8297814,0.00030136,2]
[325298015,1714685450628,-500.0,0.00030136,2]
[325298016,1714685450638,-2756.99,0.00030136,2]
[325298017,1714685450649,-1333.92,0.00030136,2]
[325298018,1714685450659,-500.0,0.00030136,2]
[325298019,1714685450670,-500.0,0.00030136,2]
[325298020,1714685450680,-1297.56,0.00030136,2]
[325298021,1714685450690,-500.41580316,0.00030136,2]
[325298022,1714685450700,-500.0,0.00030136,2]
[325298023,1714685450710,-500.0,0.00030136,2]
[325298024,1714685450721,-6141.64,0.00030136,2]
[325298025,1714685450731,-546.54,0.00030136,2]
[325298026,1714685450742,-2776.97,0.00030136,2]
[325298027,1714685450752,-500.0,0.00030136,2]
[325298028,1714685450763,-500.0,0.00030136,2]
[325298029,1714685450773,-500.0,0.00030136,2]
[325298030,1714685450783,-501.50594883,0.00030136,2]
[325298031,1714685450793,-5022.45,0.00030136,2]
[325298032,1714685450802,-500.0,0.00030136,2]
[325298033,1714685450812,-1093.44,0.00030136,2]
[325298034,1714685450822,-500.0,0.00030136,2]
[325298035,1714685450832,-500.0,0.00030136,2]
[325298036,1714685450842,-1337.09,0.00030136,2]
[325298037,1714685450852,-500.0,0.00030136,2]
[325298038,1714685450862,-6940.69,0.00030136,2]
[325298039,1714685450872,-7950.98,0.00030136,2]
[325298040,1714685450882,-500.0,0.00030136,2]
[325298041,1714685450891,-500.0,0.00030136,2]
[325298042,1714685450901,-500.0,0.00030136,2]
[325298043,1714685450911,-1307.77,0.00030136,2]
[325298044,1714685450920,-500.0,0.00030136,2]
[325298045,1714685450930,-500.0,0.00030136,2]
[325298046,1714685450940,-500.0,0.00030136,2]
[325298047,1714685450949,-500.0,0.00030136,2]
[325298048,1714685450959,-500.0,0.00030136,2]
[325298049,1714685450969,-1082.95,0.00030136,2]
[325298050,1714685450980,-500.0,0.00030136,2]
[325298051,1714685450989,-559.58177294,0.00030136,2]
[325298052,1714685451001,-500.0,0.00030136,2]
[325298053,1714685451010,-974.91,0.00030136,2]
[325298054,1714685451020,-640.47,0.00030136,2]
[325298055,1714685451030,-500.0,0.00030136,2]
[325298056,1714685451040,-500.0,0.00030136,2]
[325298057,1714685451049,-1270.92,0.00030136,2]
[325298058,1714685451059,-882.45,0.00030136,2]
[325298059,1714685451069,-24228.53,0.00030136,2]
[325298060,1714685451079,-2250.22,0.00030136,2]
[325298061,1714685451089,-600.89,0.00030136,2]
[325298062,1714685451099,-6890.25,0.00030136,2]
[325298063,1714685451108,-500.98604982,0.00030136,2]
[325298064,1714685451118,-641.16,0.00030136,2]
[325298065,1714685451127,-500.0,0.00030136,2]
[325298066,1714685451138,-3261.94,0.00030136,2]
[325298067,1714685451148,-500.0,0.00030136,2]
[325298068,1714685451158,-4457.72,0.00030136,2]
[325298069,1714685451167,-2605.53,0.00030136,2]
[325298070,1714685451178,-2439.91,0.00030136,2]
[325298071,1714685451187,-500.0,0.00030136,2]
[325298072,1714685451197,-500.0,0.00030136,2]
[325298073,1714685451207,-500.0,0.00030136,2]
[325298074,1714685451217,-235.62631837,0.00030136,2]